[Event "Late Titled Tuesday Blitz February 8 2022"]
[White "Rodrigues Mota, Romulo Cardoso S"]
[Black "Garagulya, Konstantin"]
[WhiteFideId "2187442"]
[BlackFideId "4128931"]
[WhiteElo "1719"]
[BlackElo "2329"]
[Result "0-1"]
[Round "11"]
[TimeControl "180+1"]
[Date "2022.02.09"]
[WhiteClock "0:00:13"]
[BlackClock "0:00:12"]

1. e4 {[%clk 0:02:13]}  c5 {[%clk 0:02:53]} 2. Nf3 {[%clk 0:02:13]}  a6 {[%clk 0:02:54]} 3. d4 {[%clk 0:02:12]}  cxd4 {[%clk 0:02:54]} 4. Nxd4 {[%clk 0:02:13]}  Nf6 {[%clk 0:02:54]} 5. Nc3 {[%clk 0:02:12]}  e5 {[%clk 0:02:55]} 6. Nb3 {[%clk 0:02:12]}  Bb4 {[%clk 0:02:55]} 7. Bd3 {[%clk 0:02:11]}  d5 {[%clk 0:02:56]} 8. exd5 {[%clk 0:02:11]}  e4 {[%clk 0:02:57]} 9. Be2 {[%clk 0:01:58]}  Nxd5 {[%clk 0:02:57]} 10. Bd2 {[%clk 0:01:56]}  Nxc3 {[%clk 0:02:57]} 11. bxc3 {[%clk 0:01:56]}  Bd6 {[%clk 0:02:57]} 12. O-O {[%clk 0:01:56]}  Qc7 {[%clk 0:02:57]} 13. h3 {[%clk 0:01:49]}  O-O {[%clk 0:02:56]} 14. c4 {[%clk 0:01:48]}  Be5 {[%clk 0:02:52]} 15. Ba5 {[%clk 0:01:47]}  b6 {[%clk 0:02:26]} 16. Bb4 {[%clk 0:01:46]}  Rd8 {[%clk 0:02:24]} 17. Qc1 {[%clk 0:01:40]}  Nc6 {[%clk 0:02:19]} 18. Ba3 {[%clk 0:01:35]}  Bxa1 {[%clk 0:02:17]} 19. Qxa1 {[%clk 0:01:36]}  Bf5 {[%clk 0:02:16]} 20. Qc3 {[%clk 0:01:23]}  Bg6 {[%clk 0:02:13]} 21. Qe3 {[%clk 0:01:22]}  Rac8 {[%clk 0:02:08]} 22. Bb2 {[%clk 0:01:20]}  Ne5 {[%clk 0:02:06]} 23. Bxe5 {[%clk 0:01:15]}  Qxe5 {[%clk 0:02:05]} 24. Qxb6 {[%clk 0:01:15]}  Qb2 {[%clk 0:01:55]} 25. Bd1 {[%clk 0:00:58]}  Qxa2 {[%clk 0:01:50]} 26. c5 {[%clk 0:00:58]}  e3 {[%clk 0:01:35]} 27. fxe3 {[%clk 0:00:59]}  Bxc2 {[%clk 0:01:32]} 28. Bxc2 {[%clk 0:00:56]}  Qxc2 {[%clk 0:01:33]} 29. Qb7 {[%clk 0:00:56]}  Rf8 {[%clk 0:01:28]} 30. Rxf7 {[%clk 0:00:55]}  Rxf7 {[%clk 0:01:13]} 31. Qxc8+ {[%clk 0:00:54]}  Rf8 {[%clk 0:01:14]} 32. Qe6+ {[%clk 0:00:54]}  Kh8 {[%clk 0:01:14]} 33. c6 {[%clk 0:00:54]}  h6 {[%clk 0:00:46]} 34. Nd4 {[%clk 0:00:54]}  Qc1+ {[%clk 0:00:42]} 35. Kh2 {[%clk 0:00:53]}  a5 {[%clk 0:00:42]} 36. Qe7 {[%clk 0:00:53]}  Rg8 {[%clk 0:00:31]} 37. c7 {[%clk 0:00:52]}  a4 {[%clk 0:00:23]} 38. Nb5 {[%clk 0:00:51]}  Qc6 {[%clk 0:00:19]} 39. Nd6 {[%clk 0:00:48]}  a3 {[%clk 0:00:17]} 40. Nf7+ {[%clk 0:00:33]}  Kh7 {[%clk 0:00:16]} 41. Nd8 {[%clk 0:00:33]}  Qc2 {[%clk 0:00:12]} 42. Qd7 {[%clk 0:00:18]}  a2 {[%clk 0:00:11]} 43. c8=Q {[%clk 0:00:18]}  Qxc8 {[%clk 0:00:09]} 44. Qxc8 {[%clk 0:00:18]}  a1=Q {[%clk 0:00:09]} 45. Qf5+ {[%clk 0:00:18]}  g6 {[%clk 0:00:09]} 46. Qf7+ {[%clk 0:00:18]}  Qg7 {[%clk 0:00:10]} 47. Qxg7+ {[%clk 0:00:18]}  Rxg7 {[%clk 0:00:10]} 48. Ne6 {[%clk 0:00:19]}  Re7 {[%clk 0:00:10]} 49. Nf4 {[%clk 0:00:20]}  Rxe3 {[%clk 0:00:11]} 50. g3 {[%clk 0:00:18]}  Re8 {[%clk 0:00:12]} 51. Kg2 {[%clk 0:00:19]}  Ra8 {[%clk 0:00:12]} 52. Kf3 {[%clk 0:00:20]}  Kg7 {[%clk 0:00:13]} 53. Ng2 {[%clk 0:00:20]}  Kf7 {[%clk 0:00:13]} 54. Ne3 {[%clk 0:00:21]}  Ra3 {[%clk 0:00:13]} 55. Ke4 {[%clk 0:00:22]}  Ke6 {[%clk 0:00:13]} 56. Kf3 {[%clk 0:00:22]}  Ra4 {[%clk 0:00:14]} 57. g4 {[%clk 0:00:23]}  Ra3 {[%clk 0:00:14]} 58. Kf4 {[%clk 0:00:23]}  g5+ {[%clk 0:00:14]} 59. Ke4 {[%clk 0:00:23]}  Rb3 {[%clk 0:00:13]} 60. Kf3 {[%clk 0:00:23]}  Ke5 {[%clk 0:00:13]} 61. Kf2 {[%clk 0:00:23]}  Ke4 {[%clk 0:00:13]} 62. Ng2 {[%clk 0:00:24]}  Rxh3 {[%clk 0:00:13]} 63. Ke2 {[%clk 0:00:18]}  Rh2 {[%clk 0:00:13]} 64. Kf2 {[%clk 0:00:18]}  Rh3 {[%clk 0:00:12]} 65. Ke2 {[%clk 0:00:13]}  Ra3 {[%clk 0:00:13]} 66. Kf2 {[%clk 0:00:13]}  Ra2+ {[%clk 0:00:12]} 67. Kg3 {[%clk 0:00:13]}  Re2 {[%clk 0:00:12]} 68. Kh3 {[%clk 0:00:13]}  Kf3 {[%clk 0:00:12]} 0-1


[Site "https://www.chess.com"]

[Event "Late Titled Tuesday Blitz February 8 2022"]
[White "Rudzinska, Michalina"]
[Black "Osiecki, Stanislaw"]
[WhiteFideId "1172883"]
[BlackFideId "1102990"]
[WhiteElo "1904"]
[BlackElo "2127"]
[Result "1-0"]
[Round "11"]
[TimeControl "180+1"]
[Date "2022.02.09"]
[WhiteClock "0:02:08"]
[BlackClock "0:00:01"]

1. e4 {[%clk 0:02:59]}  e6 {[%clk 0:03:00]} 2. d4 {[%clk 0:02:55]}  d5 {[%clk 0:02:58]} 3. Nd2 {[%clk 0:02:54]}  c5 {[%clk 0:02:58]} 4. exd5 {[%clk 0:02:54]}  exd5 {[%clk 0:02:57]} 5. Ngf3 {[%clk 0:02:54]}  cxd4 {[%clk 0:02:56]} 6. Nxd4 {[%clk 0:02:54]}  Nc6 {[%clk 0:02:57]} 7. Bb5 {[%clk 0:02:54]}  Bd7 {[%clk 0:02:56]} 8. N2b3 {[%clk 0:02:51]}  Bd6 {[%clk 0:02:56]} 9. O-O {[%clk 0:02:50]}  Nge7 {[%clk 0:02:55]} 10. Re1 {[%clk 0:02:50]}  O-O {[%clk 0:02:55]} 11. Bg5 {[%clk 0:02:50]}  f6 {[%clk 0:02:55]} 12. Bh4 {[%clk 0:02:50]}  Nxd4 {[%clk 0:02:54]} 13. Nxd4 {[%clk 0:02:49]}  Bxb5 {[%clk 0:02:46]} 14. Nxb5 {[%clk 0:02:50]}  Kh8 {[%clk 0:02:37]} 15. Nxd6 {[%clk 0:02:49]}  Qxd6 {[%clk 0:02:37]} 16. Bg3 {[%clk 0:02:49]}  Qd7 {[%clk 0:02:36]} 17. c3 {[%clk 0:02:50]}  Nf5 {[%clk 0:02:32]} 18. Qf3 {[%clk 0:02:48]}  Nxg3 {[%clk 0:02:25]} 19. hxg3 {[%clk 0:02:49]}  Rfe8 {[%clk 0:02:23]} 20. Rad1 {[%clk 0:02:49]}  Rxe1+ {[%clk 0:02:22]} 21. Rxe1 {[%clk 0:02:50]}  h6 {[%clk 0:02:21]} 22. Rd1 {[%clk 0:02:50]}  Rd8 {[%clk 0:02:20]} 23. Rd4 {[%clk 0:02:50]}  b5 {[%clk 0:02:20]} 24. b3 {[%clk 0:02:49]}  Qe6 {[%clk 0:01:17]} 25. c4 {[%clk 0:02:46]}  bxc4 {[%clk 0:01:12]} 26. bxc4 {[%clk 0:02:47]}  Qe5 {[%clk 0:01:08]} 27. Rxd5 {[%clk 0:02:46]}  Rxd5 {[%clk 0:01:03]} 28. cxd5 {[%clk 0:02:38]}  Qa1+ {[%clk 0:01:00]} 29. Kh2 {[%clk 0:02:38]}  Qxa2 {[%clk 0:01:00]} 30. d6 {[%clk 0:02:38]}  Qd2 {[%clk 0:00:57]} 31. Qc6 {[%clk 0:02:36]}  Qd1 {[%clk 0:00:36]} 32. f3 {[%clk 0:02:27]}  Kh7 {[%clk 0:00:19]} 33. d7 {[%clk 0:02:27]}  h5 {[%clk 0:00:09]} 34. Qc7 {[%clk 0:02:22]}  h4 {[%clk 0:00:08]} 35. d8=Q {[%clk 0:02:11]}  hxg3+ {[%clk 0:00:08]} 36. Kxg3 {[%clk 0:02:12]}  Qe1+ {[%clk 0:00:06]} 37. Kf4 {[%clk 0:02:12]}  Qh4+ {[%clk 0:00:01]} 38. Kf5 {[%clk 0:02:09]}  Qg5+ {[%clk 0:00:01]} 39. Ke6 {[%clk 0:02:09]}  Qe3+ {[%clk 0:00:01]} 40. Kf7 {[%clk 0:02:08]}  Qb3+ {[%clk 0:00:01]} 41. Kf8 {[%clk 0:02:08]} 1-0


[Site "https://www.chess.com"]

[Event "Late Titled Tuesday Blitz February 8 2022"]
[White "Sarana, Alexey"]
[Black "Sadhwani, Raunak"]
[WhiteFideId "24133795"]
[BlackFideId "35093487"]
[WhiteElo "2665"]
[BlackElo "2616"]
[Result "1/2-1/2"]
[Round "11"]
[TimeControl "180+1"]
[Date "2022.02.08"]
[WhiteClock "0:00:47"]
[BlackClock "0:00:07"]

1. d4 {[%clk 0:03:00]}  Nf6 {[%clk 0:03:00]} 2. c4 {[%clk 0:03:01]}  g6 {[%clk 0:03:01]} 3. Nc3 {[%clk 0:03:02]}  Bg7 {[%clk 0:03:02]} 4. e4 {[%clk 0:03:02]}  d6 {[%clk 0:03:02]} 5. Be2 {[%clk 0:03:03]}  O-O {[%clk 0:03:02]} 6. Be3 {[%clk 0:03:04]}  c5 {[%clk 0:03:03]} 7. d5 {[%clk 0:03:03]}  e6 {[%clk 0:03:03]} 8. Nf3 {[%clk 0:03:04]}  exd5 {[%clk 0:03:03]} 9. cxd5 {[%clk 0:03:05]}  Bg4 {[%clk 0:03:03]} 10. Nd2 {[%clk 0:03:05]}  Bxe2 {[%clk 0:03:04]} 11. Qxe2 {[%clk 0:03:06]}  Re8 {[%clk 0:03:04]} 12. O-O {[%clk 0:03:06]}  Na6 {[%clk 0:03:03]} 13. h3 {[%clk 0:02:54]}  Nc7 {[%clk 0:03:00]} 14. a4 {[%clk 0:02:54]}  b6 {[%clk 0:03:00]} 15. Qd3 {[%clk 0:02:38]}  Nd7 {[%clk 0:03:00]} 16. Bf4 {[%clk 0:02:37]}  Ne5 {[%clk 0:03:00]} 17. Qc2 {[%clk 0:02:34]}  Na6 {[%clk 0:02:56]} 18. Bxe5 {[%clk 0:02:27]}  Bxe5 {[%clk 0:02:56]} 19. Nc4 {[%clk 0:02:28]}  Nb4 {[%clk 0:02:56]} 20. Qe2 {[%clk 0:02:28]}  Bxc3 {[%clk 0:02:39]} 21. bxc3 {[%clk 0:02:27]}  Nxd5 {[%clk 0:02:40]} 22. Qf3 {[%clk 0:02:11]}  Nf6 {[%clk 0:02:36]} 23. Rfe1 {[%clk 0:02:09]}  Nxe4 {[%clk 0:02:31]} 24. Rad1 {[%clk 0:01:59]}  d5 {[%clk 0:02:24]} 25. Rd3 {[%clk 0:00:52]}  Qf6 {[%clk 0:00:59]} 26. Rxd5 {[%clk 0:00:51]}  Qxf3 {[%clk 0:00:58]} 27. gxf3 {[%clk 0:00:52]}  Nxc3 {[%clk 0:00:56]} 28. Rxe8+ {[%clk 0:00:52]}  Rxe8 {[%clk 0:00:57]} 29. Rd7 {[%clk 0:00:53]}  Nxa4 {[%clk 0:00:46]} 30. Rxa7 {[%clk 0:00:53]}  b5 {[%clk 0:00:38]} 31. Nd6 {[%clk 0:00:53]}  Rb8 {[%clk 0:00:39]} 32. Nxf7 {[%clk 0:00:52]}  c4 {[%clk 0:00:32]} 33. Ne5 {[%clk 0:00:49]}  Rb6 {[%clk 0:00:19]} 34. Ra8+ {[%clk 0:00:45]}  Kg7 {[%clk 0:00:17]} 35. Ra7+ {[%clk 0:00:46]}  Kg8 {[%clk 0:00:17]} 36. Ra8+ {[%clk 0:00:46]}  Kg7 {[%clk 0:00:17]} 37. Ra7+ {[%clk 0:00:47]}  Kg8 {[%clk 0:00:07]} 1/2-1/2


[Site "https://www.chess.com"]

[Event "Late Titled Tuesday Blitz February 8 2022"]
[White "Solon, Nathan"]
[Black "Peatman, Carter"]
[WhiteFideId "2017229"]
[BlackFideId "2096480"]
[WhiteElo "2553"]
[BlackElo "2413"]
[Result "1-0"]
[Round "11"]
[TimeControl "180+1"]
[Date "2022.02.09"]
[WhiteClock "0:01:11"]
[BlackClock "0:01:23"]

1. d4 {[%clk 0:03:00]}  d5 {[%clk 0:02:59]} 2. c4 {[%clk 0:03:01]}  dxc4 {[%clk 0:03:00]} 3. Nf3 {[%clk 0:02:59]}  Nf6 {[%clk 0:02:54]} 4. e3 {[%clk 0:02:59]}  a6 {[%clk 0:02:55]} 5. Bxc4 {[%clk 0:02:58]}  e6 {[%clk 0:02:49]} 6. O-O {[%clk 0:02:57]}  b5 {[%clk 0:02:49]} 7. Bd3 {[%clk 0:02:53]}  c5 {[%clk 0:02:49]} 8. a4 {[%clk 0:02:51]}  c4 {[%clk 0:02:46]} 9. Be2 {[%clk 0:02:47]}  Bb7 {[%clk 0:02:46]} 10. axb5 {[%clk 0:02:43]}  axb5 {[%clk 0:02:46]} 11. Rxa8 {[%clk 0:02:44]}  Bxa8 {[%clk 0:02:47]} 12. b3 {[%clk 0:02:40]}  Bd5 {[%clk 0:02:39]} 13. Nc3 {[%clk 0:02:36]}  cxb3 {[%clk 0:02:35]} 14. Bxb5+ {[%clk 0:02:33]}  Nbd7 {[%clk 0:02:34]} 15. e4 {[%clk 0:02:25]}  Nxe4 {[%clk 0:02:00]} 16. Nxe4 {[%clk 0:02:18]}  Bxe4 {[%clk 0:02:00]} 17. Ne5 {[%clk 0:02:18]}  Bd6 {[%clk 0:01:48]} 18. Nxd7 {[%clk 0:02:09]}  Ke7 {[%clk 0:01:47]} 19. Qxb3 {[%clk 0:01:55]}  Qa5 {[%clk 0:01:46]} 20. Qa4 {[%clk 0:01:31]}  Qc7 {[%clk 0:01:35]} 21. Ne5 {[%clk 0:01:24]}  Ra8 {[%clk 0:01:31]} 22. Qd1 {[%clk 0:01:12]}  Ra1 {[%clk 0:01:23]} 23. Bg5+ {[%clk 0:01:11]} 1-0


[Site "https://www.chess.com"]

[Event "Late Titled Tuesday Blitz February 8 2022"]
[White "Svane, Rasmus"]
[Black "Xiong, Jeffery"]
[WhiteFideId "4657101"]
[BlackFideId "2047640"]
[WhiteElo "2645"]
[BlackElo "2727"]
[Result "0-1"]
[Round "11"]
[TimeControl "180+1"]
[Date "2022.02.08"]
[WhiteClock "0:00:05"]
[BlackClock "0:00:18"]

1. Nf3 {[%clk 0:03:00]}  g6 {[%clk 0:03:00]} 2. d4 {[%clk 0:02:59]}  Bg7 {[%clk 0:02:59]} 3. e4 {[%clk 0:02:59]}  d6 {[%clk 0:02:59]} 4. Bd3 {[%clk 0:02:57]}  Nc6 {[%clk 0:02:58]} 5. c3 {[%clk 0:02:55]}  e5 {[%clk 0:02:53]} 6. Be3 {[%clk 0:02:46]}  exd4 {[%clk 0:02:48]} 7. cxd4 {[%clk 0:02:47]}  Bg4 {[%clk 0:02:48]} 8. Bb5 {[%clk 0:02:45]}  Ne7 {[%clk 0:02:40]} 9. Nbd2 {[%clk 0:02:36]}  O-O {[%clk 0:02:40]} 10. h3 {[%clk 0:02:37]}  Bd7 {[%clk 0:02:29]} 11. Bc4 {[%clk 0:02:11]}  d5 {[%clk 0:02:25]} 12. exd5 {[%clk 0:02:11]}  Nb4 {[%clk 0:02:25]} 13. O-O {[%clk 0:02:08]}  Nbxd5 {[%clk 0:02:22]} 14. Bg5 {[%clk 0:02:08]}  h6 {[%clk 0:02:23]} 15. Bxd5 {[%clk 0:02:00]}  hxg5 {[%clk 0:02:24]} 16. Bxb7 {[%clk 0:01:59]}  Rb8 {[%clk 0:02:25]} 17. Be4 {[%clk 0:01:50]}  Rxb2 {[%clk 0:02:23]} 18. Nc4 {[%clk 0:01:33]}  Rb4 {[%clk 0:02:22]} 19. Nce5 {[%clk 0:01:33]}  Bxe5 {[%clk 0:01:59]} 20. Nxe5 {[%clk 0:01:32]}  Be6 {[%clk 0:02:00]} 21. Nf3 {[%clk 0:01:19]}  g4 {[%clk 0:02:01]} 22. hxg4 {[%clk 0:01:20]}  Bxg4 {[%clk 0:02:01]} 23. Rc1 {[%clk 0:01:12]}  Qd6 {[%clk 0:01:49]} 24. Qc2 {[%clk 0:01:11]}  Bxf3 {[%clk 0:01:49]} 25. Bxf3 {[%clk 0:01:12]}  c6 {[%clk 0:01:49]} 26. Qc5 {[%clk 0:00:53]}  Qxc5 {[%clk 0:01:47]} 27. Rxc5 {[%clk 0:00:54]}  Rxd4 {[%clk 0:01:27]} 28. Bxc6 {[%clk 0:00:38]}  Rb8 {[%clk 0:01:27]} 29. Bb5 {[%clk 0:00:32]}  Nf5 {[%clk 0:01:24]} 30. a4 {[%clk 0:00:31]}  Rb6 {[%clk 0:01:11]} 31. Rc6 {[%clk 0:00:26]}  Rxc6 {[%clk 0:01:03]} 32. Bxc6 {[%clk 0:00:27]}  Rb4 {[%clk 0:01:04]} 33. a5 {[%clk 0:00:16]}  Nd4 {[%clk 0:01:01]} 34. Bf3 {[%clk 0:00:14]}  Nxf3+ {[%clk 0:00:56]} 35. gxf3 {[%clk 0:00:15]}  Ra4 {[%clk 0:00:57]} 36. Rc1 {[%clk 0:00:12]}  Rxa5 {[%clk 0:00:57]} 37. Rc7 {[%clk 0:00:12]}  Ra1+ {[%clk 0:00:46]} 38. Kg2 {[%clk 0:00:12]}  a5 {[%clk 0:00:47]} 39. Ra7 {[%clk 0:00:12]}  a4 {[%clk 0:00:48]} 40. Ra8+ {[%clk 0:00:07]}  Kg7 {[%clk 0:00:47]} 41. Ra6 {[%clk 0:00:08]}  a3 {[%clk 0:00:47]} 42. Kg3 {[%clk 0:00:07]}  Kf8 {[%clk 0:00:29]} 43. Ra7 {[%clk 0:00:06]}  Ke8 {[%clk 0:00:29]} 44. f4 {[%clk 0:00:07]}  Kd8 {[%clk 0:00:17]} 45. Rxf7 {[%clk 0:00:06]}  a2 {[%clk 0:00:14]} 46. Ra7 {[%clk 0:00:03]}  Rg1+ {[%clk 0:00:14]} 47. Kh4 {[%clk 0:00:02]}  a1=Q {[%clk 0:00:15]} 48. Rxa1 {[%clk 0:00:02]}  Rxa1 {[%clk 0:00:16]} 49. Kg5 {[%clk 0:00:03]}  Ra6 {[%clk 0:00:16]} 50. f5 {[%clk 0:00:03]}  gxf5 {[%clk 0:00:17]} 51. Kf4 {[%clk 0:00:03]}  Ke7 {[%clk 0:00:18]} 52. Ke5 {[%clk 0:00:04]}  Ra5+ {[%clk 0:00:18]} 53. Kf4 {[%clk 0:00:05]}  Ke6 {[%clk 0:00:18]} 0-1


[Site "https://www.chess.com"]

[Event "Late Titled Tuesday Blitz February 8 2022"]
[White "Wachinger, Guenther"]
[Black "Li, Hui"]
[WhiteFideId "4604261"]
[BlackFideId "15400310"]
[WhiteElo "2212"]
[BlackElo "1954"]
[Result "1-0"]
[Round "11"]
[TimeControl "180+1"]
[Date "2022.02.09"]
[WhiteClock "0:00:48"]
[BlackClock "0:00:01"]

1. e4 {[%clk 0:03:00]}  e5 {[%clk 0:02:59]} 2. Nf3 {[%clk 0:02:59]}  Nf6 {[%clk 0:03:00]} 3. Nc3 {[%clk 0:03:00]}  Nc6 {[%clk 0:03:00]} 4. a3 {[%clk 0:03:00]}  Bc5 {[%clk 0:02:55]} 5. Nxe5 {[%clk 0:02:59]}  Nxe5 {[%clk 0:02:55]} 6. d4 {[%clk 0:02:59]}  Bd6 {[%clk 0:02:56]} 7. f4 {[%clk 0:02:58]}  Ng6 {[%clk 0:02:48]} 8. e5 {[%clk 0:02:59]}  Be7 {[%clk 0:02:37]} 9. f5 {[%clk 0:02:57]}  Nf8 {[%clk 0:01:43]} 10. Bd3 {[%clk 0:02:54]}  Ng8 {[%clk 0:01:29]} 11. O-O {[%clk 0:02:51]}  d5 {[%clk 0:01:21]} 12. Bf4 {[%clk 0:02:46]}  c6 {[%clk 0:01:00]} 13. Ne2 {[%clk 0:02:45]}  Bg5 {[%clk 0:00:56]} 14. Qd2 {[%clk 0:02:39]}  Bxf4 {[%clk 0:00:53]} 15. Nxf4 {[%clk 0:02:40]}  Bd7 {[%clk 0:00:50]} 16. Rae1 {[%clk 0:02:34]}  Ne7 {[%clk 0:00:41]} 17. e6 {[%clk 0:02:31]}  fxe6 {[%clk 0:00:42]} 18. Nxe6 {[%clk 0:02:30]}  Bxe6 {[%clk 0:00:37]} 19. fxe6 {[%clk 0:02:31]}  Qb6 {[%clk 0:00:31]} 20. c3 {[%clk 0:02:24]}  O-O-O {[%clk 0:00:31]} 21. Rf7 {[%clk 0:02:24]}  Nfg6 {[%clk 0:00:31]} 22. Rxg7 {[%clk 0:02:23]}  Rhg8 {[%clk 0:00:30]} 23. Rxh7 {[%clk 0:02:21]}  c5 {[%clk 0:00:22]} 24. Bf1 {[%clk 0:02:08]}  cxd4 {[%clk 0:00:21]} 25. cxd4 {[%clk 0:02:09]}  Kb8 {[%clk 0:00:21]} 26. Rh3 {[%clk 0:02:03]}  Qd6 {[%clk 0:00:18]} 27. Rb3 {[%clk 0:01:57]}  Nf4 {[%clk 0:00:15]} 28. g3 {[%clk 0:01:55]}  Nxe6 {[%clk 0:00:10]} 29. Bg2 {[%clk 0:01:55]}  Nc6 {[%clk 0:00:05]} 30. Rb5 {[%clk 0:01:47]}  Nexd4 {[%clk 0:00:05]} 31. Rxd5 {[%clk 0:01:46]}  Qc7 {[%clk 0:00:05]} 32. Rxd8+ {[%clk 0:01:41]}  Rxd8 {[%clk 0:00:06]} 33. Qe3 {[%clk 0:01:41]}  Nc2 {[%clk 0:00:06]} 34. Qe2 {[%clk 0:01:36]}  Nxe1 {[%clk 0:00:06]} 35. Qxe1 {[%clk 0:01:37]}  Qb6+ {[%clk 0:00:06]} 36. Qf2 {[%clk 0:01:38]}  Qxf2+ {[%clk 0:00:06]} 37. Kxf2 {[%clk 0:01:38]}  Rd2+ {[%clk 0:00:07]} 38. Kf3 {[%clk 0:01:39]}  Rxb2 {[%clk 0:00:08]} 39. h4 {[%clk 0:01:39]}  Rb3+ {[%clk 0:00:08]} 40. Kf4 {[%clk 0:01:39]}  Rxa3 {[%clk 0:00:09]} 41. h5 {[%clk 0:01:40]}  Ra4+ {[%clk 0:00:09]} 42. Be4 {[%clk 0:01:40]}  Ne7 {[%clk 0:00:05]} 43. h6 {[%clk 0:01:39]}  Kc7 {[%clk 0:00:04]} 44. g4 {[%clk 0:01:34]}  Kd6 {[%clk 0:00:04]} 45. Kg5 {[%clk 0:01:32]}  Rxe4 {[%clk 0:00:04]} 46. h7 {[%clk 0:01:33]}  Ng6 {[%clk 0:00:03]} 47. Kxg6 {[%clk 0:01:29]}  Re8 {[%clk 0:00:02]} 48. Kg7 {[%clk 0:01:29]}  Re7+ {[%clk 0:00:03]} 49. Kg8 {[%clk 0:01:28]}  Re8+ {[%clk 0:00:03]} 50. Kg7 {[%clk 0:01:29]}  Re7+ {[%clk 0:00:03]} 51. Kh6 {[%clk 0:01:26]}  Re8 {[%clk 0:00:02]} 52. g5 {[%clk 0:01:27]}  Ke6 {[%clk 0:00:03]} 53. g6 {[%clk 0:01:27]}  Kf6 {[%clk 0:00:01]} 54. g7 {[%clk 0:01:28]}  Re1 {[%clk 0:00:01]} 55. g8=N+ {[%clk 0:00:54]}  Kf7 {[%clk 0:00:01]} 56. h8=N+ {[%clk 0:00:48]} 1-0


[Site "https://www.chess.com"]

[Event "Late Titled Tuesday Blitz February 8 2022"]
[White "Yang, Cayden"]
[Black "Kubatko, Ivan"]
[WhiteFideId "30967260"]
[BlackFideId "24111473"]
[WhiteElo "2600"]
[BlackElo "2285"]
[Result "0-1"]
[Round "11"]
[TimeControl "180+1"]
[Date "2022.02.09"]
[WhiteClock "0:00:01"]
[BlackClock "0:01:42"]

1. e4 {[%clk 0:03:00]}  d5 {[%clk 0:02:53]} 2. exd5 {[%clk 0:03:01]}  Qxd5 {[%clk 0:02:52]} 3. Nc3 {[%clk 0:03:01]}  Qa5 {[%clk 0:02:52]} 4. Nf3 {[%clk 0:02:59]}  Nf6 {[%clk 0:02:52]} 5. Bc4 {[%clk 0:02:57]}  Bg4 {[%clk 0:02:50]} 6. h3 {[%clk 0:02:55]}  Bh5 {[%clk 0:02:51]} 7. d4 {[%clk 0:02:51]}  Nc6 {[%clk 0:02:50]} 8. g4 {[%clk 0:02:44]}  Bg6 {[%clk 0:02:49]} 9. Bd2 {[%clk 0:02:45]}  O-O-O {[%clk 0:02:48]} 10. Nd5 {[%clk 0:02:23]}  Qa4 {[%clk 0:02:48]} 11. b3 {[%clk 0:01:35]}  Qa3 {[%clk 0:02:46]} 12. Bc1 {[%clk 0:01:32]}  Qd6 {[%clk 0:02:45]} 13. Bf4 {[%clk 0:01:30]}  Qe6+ {[%clk 0:02:35]} 14. Ne3 {[%clk 0:01:09]}  Qe4 {[%clk 0:02:19]} 15. Bg3 {[%clk 0:00:09]}  Nxd4 {[%clk 0:02:14]} 16. Nxd4 {[%clk 0:00:04]}  Qxh1+ {[%clk 0:02:11]} 17. Ke2 {[%clk 0:00:04]}  Qxd1+ {[%clk 0:01:56]} 18. Rxd1 {[%clk 0:00:05]}  c5 {[%clk 0:01:44]} 19. Nb5 {[%clk 0:00:03]}  Rxd1 {[%clk 0:01:44]} 20. Kxd1 {[%clk 0:00:04]}  a6 {[%clk 0:01:44]} 21. Na7+ {[%clk 0:00:02]}  Kd8 {[%clk 0:01:45]} 22. a4 {[%clk 0:00:01]}  e6 {[%clk 0:01:45]} 23. c3 {[%clk 0:00:01]}  Ne4 {[%clk 0:01:42]} 0-1


[Site "https://www.chess.com"]

[Event "Late Titled Tuesday Blitz February 8 2022"]
[White "Yoo, Christopher Woojin"]
[Black "Horvath, Dominik"]
[WhiteFideId "30909694"]
[BlackFideId "1642561"]
[WhiteElo "2105"]
[BlackElo "2336"]
[Result "0-1"]
[Round "11"]
[TimeControl "180+1"]
[Date "2022.02.08"]
[WhiteClock "0:00:01"]
[BlackClock "0:00:28"]

1. e4 {[%clk 0:03:00]}  c5 {[%clk 0:02:43]} 2. Nf3 {[%clk 0:02:58]}  Nc6 {[%clk 0:02:44]} 3. b4 {[%clk 0:02:57]}  f5 {[%clk 0:02:40]} 4. exf5 {[%clk 0:02:43]}  Nxb4 {[%clk 0:02:38]} 5. Ne5 {[%clk 0:02:25]}  Nf6 {[%clk 0:02:34]} 6. Bc4 {[%clk 0:02:25]}  Qc7 {[%clk 0:02:27]} 7. Bb2 {[%clk 0:02:17]}  d5 {[%clk 0:02:21]} 8. Bb5+ {[%clk 0:02:16]}  Nc6 {[%clk 0:02:21]} 9. Qf3 {[%clk 0:02:04]}  a6 {[%clk 0:02:12]} 10. Bxc6+ {[%clk 0:02:03]}  bxc6 {[%clk 0:02:13]} 11. O-O {[%clk 0:01:25]}  Rb8 {[%clk 0:01:57]} 12. Nd3 {[%clk 0:01:24]}  Rxb2 {[%clk 0:01:45]} 13. Nxb2 {[%clk 0:01:24]}  c4 {[%clk 0:01:34]} 14. Nc3 {[%clk 0:01:22]}  g6 {[%clk 0:01:34]} 15. fxg6 {[%clk 0:01:16]}  hxg6 {[%clk 0:01:35]} 16. Qg3 {[%clk 0:01:16]}  Qxg3 {[%clk 0:01:17]} 17. fxg3 {[%clk 0:01:16]}  Bg7 {[%clk 0:01:12]} 18. Rae1 {[%clk 0:01:14]}  Bf5 {[%clk 0:01:07]} 19. Ne2 {[%clk 0:00:35]}  Ne4 {[%clk 0:01:05]} 20. d4 {[%clk 0:00:20]}  Bg4 {[%clk 0:00:40]} 21. Rf4 {[%clk 0:00:03]}  Bxe2 {[%clk 0:00:39]} 22. Rxe2 {[%clk 0:00:02]}  Bxd4+ {[%clk 0:00:39]} 23. Kf1 {[%clk 0:00:01]}  Bxb2 {[%clk 0:00:38]} 24. Rh4 {[%clk 0:00:01]}  Rf8+ {[%clk 0:00:34]} 25. Rf4 {[%clk 0:00:01]}  Rh8 {[%clk 0:00:28]} 26. Rh4 {[%clk 0:00:01]}  Rxh4 {[%clk 0:00:28]} 27. gxh4 {[%clk 0:00:01]}  Bf6 {[%clk 0:00:28]} 28. g3 {[%clk 0:00:02]}  Kf7 {[%clk 0:00:28]} 29. Kg2 {[%clk 0:00:02]}  Nc3 {[%clk 0:00:28]} 30. Re1 {[%clk 0:00:03]}  Nxa2 {[%clk 0:00:28]} 31. Kf3 {[%clk 0:00:02]}  Nb4 {[%clk 0:00:27]} 32. Re2 {[%clk 0:00:03]}  a5 {[%clk 0:00:27]} 33. Kg4 {[%clk 0:00:01]}  a4 {[%clk 0:00:27]} 34. h5 {[%clk 0:00:02]}  gxh5+ {[%clk 0:00:27]} 35. Kxh5 {[%clk 0:00:02]}  a3 {[%clk 0:00:28]} 36. g4 {[%clk 0:00:01]}  a2 {[%clk 0:00:28]} 0-1


[Site "https://www.chess.com"]